[Event "*** Titled Tuesday Blitz"]
[Site "Chess.com"]
[Date "2020.12.01"]
[Round "2"]
[White "Borsuk_Konstantin"]
[Black "Duhless"]
[Result "0-1"]
[WhiteElo "2577"]
[BlackElo "2994"]
[TimeControl "180+1"]
[EndTime "10:17:34 PST"]
[Termination "Duhless won by resignation"]

1. d4 {[%clk 0:03:00.6]} 1... Nf6 {[%clk 0:02:58.2]} 2. c4 {[%clk 0:03:01.2]}
2... c5 {[%clk 0:02:57.8]} 3. d5 {[%clk 0:03:01.2]} 3... e6 {[%clk 0:02:58.3]}
4. Nc3 {[%clk 0:03:00.9]} 4... exd5 {[%clk 0:02:58.8]} 5. cxd5 {[%clk
0:03:00.6]} 5... d6 {[%clk 0:02:59.3]} 6. Nf3 {[%clk 0:03:00.9]} 6... g6 {[%clk
0:02:59]} 7. g3 {[%clk 0:03:00.3]} 7... Bg7 {[%clk 0:02:58.4]} 8. Bg2 {[%clk
0:03:00.9]} 8... O-O {[%clk 0:02:59.1]} 9. O-O {[%clk 0:03:01.5]} 9... Bf5
{[%clk 0:02:57.2]} 10. Nd2 {[%clk 0:02:58.8]} 10... Na6 {[%clk 0:02:51.1]} 11.
e4 {[%clk 0:02:54.6]} 11... Bg4 {[%clk 0:02:50]} 12. f3 {[%clk 0:02:46]} 12...
Bd7 {[%clk 0:02:38.1]} 13. Nc4 {[%clk 0:02:33]} 13... Ne8 {[%clk 0:02:37.3]} 14.
a4 {[%clk 0:02:31]} 14... Nb4 {[%clk 0:02:23.1]} 15. Bf4 {[%clk 0:02:15.6]}
15... Qe7 {[%clk 0:02:10.7]} 16. Qd2 {[%clk 0:02:02]} 16... a6 {[%clk
0:01:59.6]} 17. Kh1 {[%clk 0:01:33.6]} 17... Rb8 {[%clk 0:01:55.4]} 18. Nb6
{[%clk 0:01:16.5]} 18... Qd8 {[%clk 0:01:48]} 19. a5 {[%clk 0:01:12.8]} 19...
Bb5 {[%clk 0:01:47.3]} 20. Nxb5 {[%clk 0:01:10.1]} 20... axb5 {[%clk 0:01:48.2]}
21. Bh3 {[%clk 0:01:08]} 21... Nf6 {[%clk 0:01:36]} 22. e5 {[%clk 0:00:49.8]}
22... Nh5 {[%clk 0:01:09.7]} 23. Bg5 {[%clk 0:00:31.3]} 23... f6 {[%clk
0:01:09.3]} 24. exf6 {[%clk 0:00:28.3]} 24... Bxf6 {[%clk 0:01:09]} 25. Bh6
{[%clk 0:00:24.1]} 25... Re8 {[%clk 0:01:04.1]} 26. Be6+ {[%clk 0:00:22.5]}
26... Kh8 {[%clk 0:01:03.5]} 27. Nd7 {[%clk 0:00:22.1]} 27... Ra8 {[%clk
0:01:03.2]} 28. g4 {[%clk 0:00:19.9]} 28... Ng7 {[%clk 0:01:01.5]} 29. Rae1
{[%clk 0:00:12.7]} 29... Rxa5 {[%clk 0:00:48.5]} 30. Qf4 {[%clk 0:00:12.6]}
30... Bxb2 {[%clk 0:00:44]} 31. Qxd6 {[%clk 0:00:08.2]} 31... Nd3 {[%clk
0:00:43.1]} 32. Re3 {[%clk 0:00:08]} 32... Ra6 {[%clk 0:00:43]} 33. Qg3 {[%clk
0:00:07.1]} 33... c4 {[%clk 0:00:42.6]} 34. Bxg7+ {[%clk 0:00:06.9]} 34... Bxg7
{[%clk 0:00:41.3]} 35. f4 {[%clk 0:00:07.5]} 35... Rd6 {[%clk 0:00:38.3]} 36. f5
{[%clk 0:00:07]} 36... Rxd7 {[%clk 0:00:36.1]} 37. Bxd7 {[%clk 0:00:05.2]} 37...
Qxd7 {[%clk 0:00:35.5]} 38. f6 {[%clk 0:00:04.9]} 38... Bf8 {[%clk 0:00:31.1]}
39. f7 {[%clk 0:00:05.1]} 39... Rxe3 {[%clk 0:00:28.4]} 40. Qxe3 {[%clk
0:00:05.3]} 40... Qxd5+ {[%clk 0:00:28.9]} 41. Rf3 {[%clk 0:00:03.7]} 41... Ne5
{[%clk 0:00:28.1]} 0-1

[Event "*** Titled Tuesday Blitz"]
[Site "Chess.com"]
[Date "2020.12.01"]
[Round "2"]
[White "Matibar"]
[Black "amiralfio"]
[Result "1-0"]
[WhiteElo "2738"]
[BlackElo "2484"]
[TimeControl "180+1"]
[EndTime "10:17:34 PST"]
[Termination "Matibar won on time"]

1. e4 {[%clk 0:02:44.1]} 1... e5 {[%clk 0:02:59.8]} 2. a3 {[%clk 0:02:41.4]}
2... Nf6 {[%clk 0:02:57.8]} 3. Nc3 {[%clk 0:02:40.7]} 3... d5 {[%clk 0:02:55.4]}
4. exd5 {[%clk 0:02:40.2]} 4... Nxd5 {[%clk 0:02:56.3]} 5. Bc4 {[%clk
0:02:33.9]} 5... Nxc3 {[%clk 0:02:52.7]} 6. Qf3 {[%clk 0:02:27.9]} 6... Be6
{[%clk 0:02:20.4]} 7. Bxe6 {[%clk 0:02:24]} 7... fxe6 {[%clk 0:02:21.3]} 8. dxc3
{[%clk 0:02:20.6]} 8... Nc6 {[%clk 0:02:14]} 9. Be3 {[%clk 0:02:18.9]} 9... Qf6
{[%clk 0:02:05.2]} 10. O-O-O {[%clk 0:02:15.1]} 10... Rd8 {[%clk 0:02:00.8]} 11.
Rxd8+ {[%clk 0:01:38.2]} 11... Kxd8 {[%clk 0:02:01.7]} 12. Qh5 {[%clk
0:01:36.1]} 12... Be7 {[%clk 0:01:50]} 13. Nf3 {[%clk 0:01:35]} 13... Kc8 {[%clk
0:01:45.4]} 14. Nd2 {[%clk 0:01:32.7]} 14... Qf5 {[%clk 0:01:38.6]} 15. Qe2
{[%clk 0:01:32]} 15... e4 {[%clk 0:01:32.9]} 16. Rd1 {[%clk 0:01:04.9]} 16...
Rd8 {[%clk 0:01:30.5]} 17. Nf1 {[%clk 0:01:05.5]} 17... Rxd1+ {[%clk 0:01:12.3]}
18. Qxd1 {[%clk 0:01:06.4]} 18... Bd6 {[%clk 0:01:11.3]} 19. h3 {[%clk
0:01:02.8]} 19... h5 {[%clk 0:01:00.3]} 20. Nd2 {[%clk 0:01:02.4]} 20... Qd5
{[%clk 0:00:51.9]} 21. Qe2 {[%clk 0:00:52.9]} 21... Ne5 {[%clk 0:00:42.6]} 22.
c4 {[%clk 0:00:46.4]} 22... Qc6 {[%clk 0:00:36]} 23. Qxh5 {[%clk 0:00:46.4]}
23... b6 {[%clk 0:00:32.9]} 24. Qh8+ {[%clk 0:00:35]} 24... Kb7 {[%clk
0:00:32.8]} 25. Qxg7 {[%clk 0:00:35.6]} 25... Nxc4 {[%clk 0:00:27.6]} 26. Qc3
{[%clk 0:00:36.1]} 26... b5 {[%clk 0:00:10.5]} 27. Nxc4 {[%clk 0:00:34.4]} 27...
bxc4 {[%clk 0:00:11.4]} 28. h4 {[%clk 0:00:27]} 28... Qd5 {[%clk 0:00:10.3]} 29.
Qd4 {[%clk 0:00:25.6]} 29... c5 {[%clk 0:00:08.4]} 30. Qxd5+ {[%clk 0:00:22.6]}
30... exd5 {[%clk 0:00:09.3]} 31. h5 {[%clk 0:00:22.3]} 31... d4 {[%clk
0:00:06.4]} 32. Bg5 {[%clk 0:00:22]} 32... Be5 {[%clk 0:00:05.7]} 33. g4 {[%clk
0:00:21.5]} 33... Kc6 {[%clk 0:00:03]} 34. Kd1 {[%clk 0:00:17.4]} 34... Kd5
{[%clk 0:00:02.6]} 35. Bd8 {[%clk 0:00:15.6]} 35... Ke6 {[%clk 0:00:01.6]} 36.
g5 {[%clk 0:00:16.1]} 1-0

[Event "*** Titled Tuesday Blitz"]
[Site "Chess.com"]
[Date "2020.12.01"]
[Round "2"]
[White "TC2304"]
[Black "Msb2"]
[Result "0-1"]
[WhiteElo "2327"]
[BlackElo "2836"]
[TimeControl "180+1"]
[EndTime "10:17:34 PST"]
[Termination "Msb2 won by resignation"]

1. d4 {[%clk 0:03:00.2]} 1... d5 {[%clk 0:02:59.3]} 2. c4 {[%clk 0:03:00.1]}
2... e6 {[%clk 0:02:59.9]} 3. Nc3 {[%clk 0:03:00.4]} 3... Nf6 {[%clk 0:03:00.5]}
4. cxd5 {[%clk 0:03:00.8]} 4... exd5 {[%clk 0:03:01.4]} 5. Bg5 {[%clk 0:03:01]}
5... c6 {[%clk 0:03:02]} 6. e3 {[%clk 0:03:01.4]} 6... Bf5 {[%clk 0:03:02.5]} 7.
Qf3 {[%clk 0:03:00.7]} 7... Bg6 {[%clk 0:03:03]} 8. Bxf6 {[%clk 0:03:00.8]} 8...
Qxf6 {[%clk 0:03:03.9]} 9. Qxf6 {[%clk 0:03:00.6]} 9... gxf6 {[%clk 0:03:04.8]}
10. Nge2 {[%clk 0:03:00.6]} 10... a5 {[%clk 0:03:04.7]} 11. h4 {[%clk 0:02:58]}
11... h5 {[%clk 0:03:03]} 12. Nf4 {[%clk 0:02:57]} 12... a4 {[%clk 0:03:03.3]}
13. a3 {[%clk 0:02:53.5]} 13... Bd6 {[%clk 0:03:01.1]} 14. Bd3 {[%clk
0:02:24.8]} 14... Rg8 {[%clk 0:03:00.2]} 15. g3 {[%clk 0:02:06.9]} 15... Nd7
{[%clk 0:03:00.2]} 16. Nxg6 {[%clk 0:01:51.7]} 16... fxg6 {[%clk 0:03:01.1]} 17.
e4 {[%clk 0:01:52.1]} 17... dxe4 {[%clk 0:02:58.6]} 18. Nxe4 {[%clk 0:01:51.9]}
18... Be7 {[%clk 0:02:56.1]} 19. Bc4 {[%clk 0:01:47.2]} 19... Rf8 {[%clk
0:02:51.6]} 20. O-O-O {[%clk 0:01:44.3]} 20... Nb6 {[%clk 0:02:47.9]} 21. Be6
{[%clk 0:01:41.2]} 21... Kd8 {[%clk 0:02:12.7]} 22. Nc5 {[%clk 0:01:35.4]} 22...
Kc7 {[%clk 0:02:09.4]} 23. Rhe1 {[%clk 0:01:34.8]} 23... Rad8 {[%clk 0:02:01.4]}
24. Re2 {[%clk 0:01:14.1]} 24... Bxc5 {[%clk 0:01:24.9]} 25. dxc5 {[%clk
0:01:13.1]} 25... Rxd1+ {[%clk 0:01:25.8]} 26. Kxd1 {[%clk 0:01:12.7]} 26... Nd7
{[%clk 0:01:26.2]} 27. Bxd7 {[%clk 0:01:08.8]} 27... Kxd7 {[%clk 0:01:27.1]} 28.
Kc2 {[%clk 0:01:06.6]} 28... f5 {[%clk 0:01:26.1]} 29. f4 {[%clk 0:01:01.4]}
29... Ra8 {[%clk 0:01:22.3]} 30. Kc3 {[%clk 0:00:52.3]} 30... Ra5 {[%clk
0:01:21.2]} 31. Re5 {[%clk 0:00:52.2]} 31... Rb5 {[%clk 0:01:20.7]} 32. Kc2
{[%clk 0:00:47.1]} 32... Rb3 {[%clk 0:01:20]} 33. Re2 {[%clk 0:00:38]} 33...
Rxg3 {[%clk 0:01:19.9]} 34. Rd2+ {[%clk 0:00:35.3]} 34... Kc7 {[%clk 0:01:20.3]}
35. Rd6 {[%clk 0:00:31.3]} 35... b6 {[%clk 0:01:20.8]} 36. Re6 {[%clk
0:00:27.9]} 36... bxc5 {[%clk 0:01:21.2]} 37. Re8 {[%clk 0:00:25.6]} 37... Kb7
{[%clk 0:01:14.3]} 38. Rg8 {[%clk 0:00:18.8]} 38... c4 {[%clk 0:01:14.5]} 39.
Rg7+ {[%clk 0:00:17.6]} 39... Kb6 {[%clk 0:01:14.6]} 40. Rg8 {[%clk 0:00:17.6]}
40... Kc5 {[%clk 0:01:14.9]} 41. Ra8 {[%clk 0:00:17.6]} 41... Kd4 {[%clk
0:01:15.4]} 42. Rxa4 {[%clk 0:00:17.5]} 42... Rg2+ {[%clk 0:01:15.9]} 43. Kb1
{[%clk 0:00:17.2]} 43... Kd3 {[%clk 0:01:12.8]} 44. Ra6 {[%clk 0:00:16.8]} 44...
c5 {[%clk 0:01:13.1]} 45. Rd6+ {[%clk 0:00:16.3]} 45... Ke4 {[%clk 0:01:13.6]}
46. Rc6 {[%clk 0:00:16.3]} 46... Kxf4 {[%clk 0:01:13.1]} 47. Rxc5 {[%clk
0:00:16.5]} 47... Ke3 {[%clk 0:01:13.7]} 48. Rxc4 {[%clk 0:00:16.8]} 48... f4
{[%clk 0:01:14.3]} 49. Rc3+ {[%clk 0:00:16.3]} 49... Ke4 {[%clk 0:01:14.8]} 50.
Rc4+ {[%clk 0:00:16.4]} 50... Ke5 {[%clk 0:01:15.3]} 51. Rc3 {[%clk 0:00:16.7]}
51... Rg3 {[%clk 0:01:02.9]} 52. Rc5+ {[%clk 0:00:15.4]} 52... Kd4 {[%clk
0:01:02.7]} 53. Rc8 {[%clk 0:00:14]} 53... f3 {[%clk 0:01:03.2]} 54. Rf8 {[%clk
0:00:13.5]} 54... Ke3 {[%clk 0:01:03.7]} 55. Kc2 {[%clk 0:00:13.1]} 55... f2
{[%clk 0:01:03.8]} 56. Re8+ {[%clk 0:00:12.7]} 56... Kf3 {[%clk 0:01:03.9]} 57.
Rf8+ {[%clk 0:00:10.5]} 57... Kg2 {[%clk 0:01:04.4]} 58. a4 {[%clk 0:00:10.4]}
58... Rf3 {[%clk 0:01:04.9]} 59. Rd8 {[%clk 0:00:07.3]} 59... f1=Q {[%clk
0:01:05.2]} 60. Rd2+ {[%clk 0:00:08.2]} 60... Rf2 {[%clk 0:01:05.6]} 0-1

[Event "*** Titled Tuesday Blitz"]
[Site "Chess.com"]
[Date "2020.12.01"]
[Round "2"]
[White "JuliaEfremova"]
[Black "anpospan"]
[Result "1-0"]
[WhiteElo "2213"]
[BlackElo "2405"]
[TimeControl "180+1"]
[EndTime "10:17:34 PST"]
[Termination "JuliaEfremova won by checkmate"]

1. d4 {[%clk 0:03:00.9]} 1... Nf6 {[%clk 0:02:58.3]} 2. Bf4 {[%clk 0:03:00]}
2... b6 {[%clk 0:02:57.9]} 3. Nf3 {[%clk 0:02:56.8]} 3... Bb7 {[%clk 0:02:58.2]}
4. e3 {[%clk 0:02:57.2]} 4... e6 {[%clk 0:02:58.1]} 5. Bd3 {[%clk 0:02:54.4]}
5... Be7 {[%clk 0:02:56.9]} 6. O-O {[%clk 0:02:53.8]} 6... Ne4 {[%clk
0:02:55.5]} 7. Nbd2 {[%clk 0:02:53.4]} 7... f5 {[%clk 0:02:55.4]} 8. Ne5 {[%clk
0:02:46.5]} 8... O-O {[%clk 0:02:49.9]} 9. f3 {[%clk 0:02:31.1]} 9... Nxd2
{[%clk 0:02:47.7]} 10. Qxd2 {[%clk 0:02:32]} 10... d6 {[%clk 0:02:34.3]} 11. Nc4
{[%clk 0:02:31.9]} 11... g5 {[%clk 0:02:27.4]} 12. Bg3 {[%clk 0:02:30.2]} 12...
Nd7 {[%clk 0:02:23.3]} 13. Rae1 {[%clk 0:02:28]} 13... Qe8 {[%clk 0:02:20.1]}
14. b3 {[%clk 0:02:14.1]} 14... a5 {[%clk 0:02:18.7]} 15. Nb2 {[%clk 0:02:13.6]}
15... Qh5 {[%clk 0:02:08.1]} 16. c4 {[%clk 0:02:12]} 16... Rf7 {[%clk
0:02:02.5]} 17. Bb1 {[%clk 0:02:04.2]} 17... Raf8 {[%clk 0:02:01]} 18. a3 {[%clk
0:01:58.4]} 18... Kh8 {[%clk 0:01:59.7]} 19. b4 {[%clk 0:01:57.5]} 19... axb4
{[%clk 0:01:59.6]} 20. axb4 {[%clk 0:01:57.2]} 20... e5 {[%clk 0:01:50.5]} 21.
dxe5 {[%clk 0:01:53.3]} 21... Nxe5 {[%clk 0:01:49.4]} 22. Bxe5+ {[%clk
0:01:48.8]} 22... dxe5 {[%clk 0:01:49.3]} 23. e4 {[%clk 0:01:42.8]} 23... fxe4
{[%clk 0:01:32.9]} 24. Bxe4 {[%clk 0:01:41.9]} 24... Bxe4 {[%clk 0:01:32.5]} 25.
Rxe4 {[%clk 0:01:42.8]} 25... Bd6 {[%clk 0:01:23.9]} 26. Nd3 {[%clk 0:01:39.6]}
26... Rg7 {[%clk 0:00:59.1]} 27. c5 {[%clk 0:01:31.9]} 27... bxc5 {[%clk
0:00:56.8]} 28. bxc5 {[%clk 0:01:32.8]} 28... g4 {[%clk 0:00:50.2]} 29. cxd6
{[%clk 0:01:26.2]} 29... gxf3 {[%clk 0:00:50.1]} 30. g3 {[%clk 0:01:26.7]} 30...
cxd6 {[%clk 0:00:49.6]} 31. Nf2 {[%clk 0:01:10]} 31... Qf5 {[%clk 0:00:44.7]}
32. Qxd6 {[%clk 0:01:05]} 32... Re8 {[%clk 0:00:35.7]} 33. Rfe1 {[%clk
0:00:53.3]} 33... Rd7 {[%clk 0:00:32.4]} 34. Qc6 {[%clk 0:00:49]} 34... Ree7
{[%clk 0:00:29.7]} 35. Qc8+ {[%clk 0:00:45.6]} 35... Kg7 {[%clk 0:00:29]} 36.
Rg4+ {[%clk 0:00:45.2]} 36... Kh6 {[%clk 0:00:25.7]} 37. Qg8 {[%clk 0:00:37.6]}
37... Rg7 {[%clk 0:00:23.9]} 38. Rh4+ {[%clk 0:00:34.1]} 38... Kg6 {[%clk
0:00:23.3]} 39. Qe8+ {[%clk 0:00:32.1]} 39... Kf6 {[%clk 0:00:22.5]} 40. Ne4+
{[%clk 0:00:26.9]} 40... Qxe4 {[%clk 0:00:20.4]} 41. Rhxe4 {[%clk 0:00:27.1]}
41... Rde7 {[%clk 0:00:19.4]} 42. Qf8+ {[%clk 0:00:24.3]} 42... Kg6 {[%clk
0:00:16.3]} 43. Qxf3 {[%clk 0:00:21.3]} 43... Rgf7 {[%clk 0:00:16.3]} 44. Qg4+
{[%clk 0:00:20.5]} 44... Kf6 {[%clk 0:00:15.9]} 45. Rf1# {[%clk 0:00:19.9]} 1-0

[Event "*** Titled Tuesday Blitz"]
[Site "Chess.com"]
[Date "2020.12.01"]
[Round "2"]
[White "Berardino"]
[Black "ozates"]
[Result "0-1"]
[WhiteElo "2631"]
[BlackElo "2405"]
[TimeControl "180+1"]
[EndTime "10:17:36 PST"]
[Termination "ozates won by resignation"]

1. e4 {[%clk 0:02:57.2]} 1... c5 {[%clk 0:02:59]} 2. Nf3 {[%clk 0:02:57.5]} 2...
Nc6 {[%clk 0:02:59]} 3. d4 {[%clk 0:02:57.9]} 3... cxd4 {[%clk 0:02:59.9]} 4.
Nxd4 {[%clk 0:02:58.4]} 4... e5 {[%clk 0:03:00.8]} 5. Nb5 {[%clk 0:02:58.2]}
5... d6 {[%clk 0:03:00.9]} 6. N1c3 {[%clk 0:02:58.7]} 6... a6 {[%clk 0:03:01.3]}
7. Na3 {[%clk 0:02:59.1]} 7... b5 {[%clk 0:03:02.2]} 8. Nd5 {[%clk 0:02:59.3]}
8... Nge7 {[%clk 0:03:02.8]} 9. c4 {[%clk 0:02:59]} 9... Nd4 {[%clk 0:03:02.9]}
10. Bd3 {[%clk 0:02:54.6]} 10... Nxd5 {[%clk 0:03:02.6]} 11. cxd5 {[%clk
0:02:54.3]} 11... Be7 {[%clk 0:02:47.7]} 12. O-O {[%clk 0:02:53.4]} 12... Bg5
{[%clk 0:02:46.2]} 13. Nc2 {[%clk 0:02:51.1]} 13... Bxc1 {[%clk 0:02:19.1]} 14.
Rxc1 {[%clk 0:02:50.1]} 14... O-O {[%clk 0:02:14.2]} 15. Nxd4 {[%clk 0:02:46.9]}
15... exd4 {[%clk 0:02:15.1]} 16. a4 {[%clk 0:02:38]} 16... Qf6 {[%clk
0:01:52.6]} 17. axb5 {[%clk 0:02:25.8]} 17... axb5 {[%clk 0:01:52.1]} 18. Bxb5
{[%clk 0:02:25.7]} 18... Rb8 {[%clk 0:01:52.6]} 19. Qd3 {[%clk 0:02:23.8]} 19...
h5 {[%clk 0:01:28.5]} 20. b3 {[%clk 0:02:00.6]} 20... h4 {[%clk 0:01:25.2]} 21.
Bc4 {[%clk 0:01:57.6]} 21... h3 {[%clk 0:01:24.8]} 22. g3 {[%clk 0:01:57]} 22...
Re8 {[%clk 0:01:11.4]} 23. Rfe1 {[%clk 0:01:53.9]} 23... Bg4 {[%clk 0:01:05.9]}
24. f4 {[%clk 0:01:39.7]} 24... Ra8 {[%clk 0:01:01.9]} 25. Ra1 {[%clk
0:01:37.8]} 25... Rxa1 {[%clk 0:00:28.4]} 26. Rxa1 {[%clk 0:01:38.7]} 26... Be2
{[%clk 0:00:25.2]} 27. Qxe2 {[%clk 0:01:05.7]} 27... d3 {[%clk 0:00:24.3]} 28.
e5 {[%clk 0:01:06.1]} 28... dxe2 {[%clk 0:00:17.8]} 29. exf6 {[%clk 0:01:05.9]}
29... e1=Q+ {[%clk 0:00:18.7]} 30. Rxe1 {[%clk 0:01:05.8]} 30... Rxe1+ {[%clk
0:00:19.6]} 31. Kf2 {[%clk 0:01:06.2]} 31... Rh1 {[%clk 0:00:19.1]} 32. fxg7
{[%clk 0:01:03.8]} 32... Rxh2+ {[%clk 0:00:19]} 33. Kg1 {[%clk 0:01:03.7]} 33...
Rg2+ {[%clk 0:00:18.9]} 34. Kh1 {[%clk 0:01:03.4]} 34... Rxg3 {[%clk 0:00:19.8]}
35. Kh2 {[%clk 0:01:03.7]} 35... Rf3 {[%clk 0:00:20.1]} 36. Bb5 {[%clk
0:00:30.1]} 36... Rxb3 {[%clk 0:00:19.2]} 37. Bd7 {[%clk 0:00:30.6]} 37... Rf3
{[%clk 0:00:19.1]} 38. Bxh3 {[%clk 0:00:27]} 38... Rxf4 {[%clk 0:00:19]} 39. Kg3
{[%clk 0:00:27.5]} 39... Rd4 {[%clk 0:00:18.3]} 40. Bg2 {[%clk 0:00:27.9]} 40...
Kxg7 {[%clk 0:00:18.5]} 41. Kf3 {[%clk 0:00:28.3]} 41... Kf6 {[%clk 0:00:18.9]}
42. Ke3 {[%clk 0:00:29.2]} 42... Ke5 {[%clk 0:00:19.6]} 43. Bf3 {[%clk
0:00:29.2]} 43... f5 {[%clk 0:00:19.7]} 44. Bg2 {[%clk 0:00:25.8]} 44... f4+
{[%clk 0:00:20]} 45. Kf2 {[%clk 0:00:25.1]} 45... Rd2+ {[%clk 0:00:19.2]} 46.
Kf1 {[%clk 0:00:23.8]} 46... Rxg2 {[%clk 0:00:19.7]} 47. Kxg2 {[%clk 0:00:23.9]}
47... Kxd5 {[%clk 0:00:20.6]} 0-1

[Event "*** Titled Tuesday Blitz"]
[Site "Chess.com"]
[Date "2020.12.01"]
[Round "2"]
[White "vladgoncharov"]
[Black "jacky72"]
[Result "0-1"]
[WhiteElo "2472"]
[BlackElo "2706"]
[TimeControl "180+1"]
[EndTime "10:17:37 PST"]
[Termination "jacky72 won on time"]

1. d4 {[%clk 0:02:59.5]} 1... Nf6 {[%clk 0:02:59.7]} 2. c4 {[%clk 0:02:56.3]}
2... g6 {[%clk 0:03:00.2]} 3. Nc3 {[%clk 0:02:56.8]} 3... Bg7 {[%clk 0:03:00.6]}
4. e4 {[%clk 0:02:56.4]} 4... O-O {[%clk 0:03:01.5]} 5. Nf3 {[%clk 0:02:56.9]}
5... d6 {[%clk 0:03:01.7]} 6. Be2 {[%clk 0:02:57.4]} 6... Na6 {[%clk 0:03:02.3]}
7. O-O {[%clk 0:02:56.9]} 7... e5 {[%clk 0:03:03.2]} 8. Bg5 {[%clk 0:02:56.2]}
8... h6 {[%clk 0:03:01.9]} 9. Bxf6 {[%clk 0:02:44.5]} 9... Qxf6 {[%clk
0:03:01.3]} 10. d5 {[%clk 0:02:44]} 10... Nc5 {[%clk 0:02:57.1]} 11. b4 {[%clk
0:02:42.8]} 11... Nd7 {[%clk 0:02:56.3]} 12. a3 {[%clk 0:02:37.3]} 12... Qe7
{[%clk 0:02:56]} 13. Rc1 {[%clk 0:02:35.8]} 13... f5 {[%clk 0:02:55.8]} 14. Nd2
{[%clk 0:02:33]} 14... Nf6 {[%clk 0:02:46.7]} 15. c5 {[%clk 0:02:29.5]} 15... f4
{[%clk 0:02:44.9]} 16. cxd6 {[%clk 0:02:26]} 16... cxd6 {[%clk 0:02:44.8]} 17.
Nb5 {[%clk 0:02:25.4]} 17... g5 {[%clk 0:02:45]} 18. Nc7 {[%clk 0:01:40.3]}
18... Rb8 {[%clk 0:02:42.7]} 19. Ne6 {[%clk 0:01:40.3]} 19... Rf7 {[%clk
0:02:28.5]} 20. Rc7 {[%clk 0:01:38.3]} 20... Qe8 {[%clk 0:02:28.5]} 21. Qc2
{[%clk 0:01:07.4]} 21... g4 {[%clk 0:02:19.9]} 22. Rc1 {[%clk 0:01:02.9]} 22...
Bd7 {[%clk 0:02:19.8]} 23. b5 {[%clk 0:00:48.7]} 23... Kh8 {[%clk 0:02:08.1]}
24. a4 {[%clk 0:00:42.2]} 24... h5 {[%clk 0:02:03.7]} 25. f3 {[%clk 0:00:37.5]}
25... Bh6 {[%clk 0:02:03.2]} 26. Kh1 {[%clk 0:00:36.2]} 26... Qg8 {[%clk
0:02:00.6]} 27. Nf1 {[%clk 0:00:32.8]} 27... Qg6 {[%clk 0:02:00.5]} 28. a5
{[%clk 0:00:31]} 28... Rg8 {[%clk 0:02:00.5]} 29. a6 {[%clk 0:00:30.7]} 29...
bxa6 {[%clk 0:01:59.1]} 30. bxa6 {[%clk 0:00:30.1]} 30... h4 {[%clk 0:01:54.6]}
31. fxg4 {[%clk 0:00:18.5]} 31... Nxg4 {[%clk 0:01:39.8]} 32. Bxg4 {[%clk
0:00:18.4]} 32... Qxg4 {[%clk 0:01:40.3]} 33. h3 {[%clk 0:00:18.7]} 33... Qg6
{[%clk 0:01:38.1]} 34. Nh2 {[%clk 0:00:16.8]} 34... f3 {[%clk 0:01:35.5]} 35.
Rg1 {[%clk 0:00:16.7]} 35... f2 {[%clk 0:01:34]} 36. Ng4 {[%clk 0:00:13.2]}
36... fxg1=Q+ {[%clk 0:01:33.2]} 37. Kxg1 {[%clk 0:00:13.9]} 37... Bxe6 {[%clk
0:01:31.1]} 38. dxe6 {[%clk 0:00:13.4]} 38... Rxc7 {[%clk 0:01:30.6]} 39. Qxc7
{[%clk 0:00:13.5]} 39... Qxe6 {[%clk 0:01:28.8]} 40. Qxa7 {[%clk 0:00:13.1]}
40... Rxg4 {[%clk 0:01:22.2]} 41. hxg4 {[%clk 0:00:14]} 41... Qxg4 {[%clk
0:01:23.1]} 42. Qb8+ {[%clk 0:00:13.1]} 42... Kh7 {[%clk 0:01:23.6]} 43. Qc7+
{[%clk 0:00:13.2]} 43... Kg8 {[%clk 0:01:15.8]} 44. Qd8+ {[%clk 0:00:12]} 44...
Kf7 {[%clk 0:01:16.2]} 45. Qc7+ {[%clk 0:00:11.4]} 45... Ke8 {[%clk 0:01:16.4]}
46. Qb8+ {[%clk 0:00:10.8]} 46... Ke7 {[%clk 0:01:15.7]} 47. Qc7+ {[%clk
0:00:08.8]} 47... Qd7 {[%clk 0:01:15.9]} 48. Qb6 {[%clk 0:00:06.3]} 48... h3
{[%clk 0:01:08.1]} 49. a7 {[%clk 0:00:05.1]} 49... Qg4 {[%clk 0:01:08]} 50. Qc7+
{[%clk 0:00:03.6]} 50... Kf6 {[%clk 0:01:07.8]} 51. Qxd6+ {[%clk 0:00:03.4]}
51... Kf7 {[%clk 0:01:06.2]} 52. Qc7+ {[%clk 0:00:03.2]} 52... Kg6 {[%clk
0:01:06.2]} 53. Qd6+ {[%clk 0:00:02.4]} 53... Kh7 {[%clk 0:01:05.4]} 54. Qe7+
{[%clk 0:00:01.6]} 54... Bg7 {[%clk 0:01:05]} 0-1